[Event "FIDE WSTC-50-65 2022"]
[Site "Acqui Terme"]
[Date "2022.06.23"]
[Round "4.7"]
[White "Garcia Palermo, Carlos Horacio"]
[Black "Horvath, Peter"]
[Result "1-0"]
[ECO "D30"]
[WhiteElo "2415"]
[BlackElo "2396"]
[Annotator "TA"]
[PlyCount "81"]
[EventDate "2022.06.20"]
[EventType "team-tourn"]
[EventCountry "ITA"]
[SourceTitle "playchess.com"]
[Source "ChessBase"]
[SourceQuality "1"]
[TimeControl "40/5400+30:1800+30"]

{[%evp 9,81,17,15,12,10,15,17,14,31,22,16,16,18,20,16,12,12,0,16,0,21,9,15,0,0,0,0,0,0,0,0,0,9,4,35,26,22,0,15,4,11,2,8,6,38,45,77,63,190,191,374,338,855,826,2173,1823,29982,392,522,519,518,509,524,385,383,385,382,389,690,670,726,623,5365,5357]} 1. d4 {[%emt 0:01:00]} d5 {[%emt 0:01:00]} 2. Nf3 {[%emt 0:00:30]} Nf6 {[%emt 0:00:30]} 3. e3 {[%emt 0:01:30]} e6 {[%emt 0:03:30]} 4. c4 {[%emt 0:00:30]} a6 {[%emt 0:00:30]} 5. b3 {[%emt 0:01:30]} c5 {[%emt 0:00:30]} 6. Bb2 {[%emt 0:00:30] D30: Queen's Gambit Declined: Systems without Nc3.} cxd4 {[%emt 0:01:30] 6...cxd4 scores better than 6...Nc6.} 7. exd4 {[%emt 0:00:30]} Nc6 {[%emt 0:01:30]} 8. Nbd2 {[%emt 0:00:00] The position is equal.} g6 {[%emt 0:02:30]} 9. g3 {[%emt 0:02:00]} Bg7 {[%emt 0:00:30]} 10. Bg2 {[%emt 0:00:30]} O-O {[%emt 0:00:30]} 11. O-O {[%emt 0:00:30]} b6 {[%emt 0:02:30]} 12. Qe2 {[%emt 0:01:30]} Bb7 {[%emt 0:01:30]} 13. Rfd1 {[%emt 0:01:30]} Rc8 {[%emt 0:09:30] [#]} 14. Nf1 $146 {[%emt 0:03:30]} ({Predecessor:} 14. Rac1 Qe7 15. Ne5 Rfd8 16. a3 a5 17. Nf1 {½-½ (17) Sumets,A (2575)-Kollars,D (2540) Cap d'Agde 2018}) 14... Qe7 {[%emt 0:05:30]} 15. Ne3 {[%emt 0:04:30]} Rfd8 {[%emt 0:02:30]} 16. Ne5 {[%emt 0:17:30]} (16. Rac1 {is more complex.} h5 17. cxd5 Nxd5 18. Nxd5 exd5 19. Qd2) 16... dxc4 {[%emt 0:30:30]} (16... h5 {with more complications.} 17. cxd5 Nxd5 18. Nxd5 exd5 19. Rd2 Qe6) 17. Bxc6 {[%emt 0:02:30]} Bxc6 {[%emt 0:05:30]} 18. Nxc6 {[%emt 0:00:30]} Rxc6 {[%emt 0:00:30]} 19. bxc4 {[%emt 0:00:00]} Rcc8 {[%emt 0:06:30]} 20. Rab1 {[%emt 0:01:00]} Rb8 {[%emt 0:06:33]} 21. Ba1 {[%emt 0:05:30]} Qe8 {[%emt 0:10:30]} 22. Qf3 {[%emt 0:07:30]} Nd7 {[%emt 0:00:07]} 23. Re1 {[%emt 0:07:30]} Rdc8 {[%emt 0:00:34]} 24. Rbc1 {[%emt 0:06:30]} Qd8 {[%emt 0:00:44]} 25. Qe2 {[%emt 0:02:30]} b5 {[%emt 0:02:08]} 26. d5 {[%emt 0:04:30][%cal Bd4d5,Bd5c6][%mdl 32]} e5 {[%emt 0:00:45]} 27. cxb5 {[%emt 0:08:30]} Rxb5 {[%emt 0:00:31]} 28. Rc6 {[%emt 0:00:30]} Rxc6 {[%emt 0:01:09] This costs Black the game.} ({Black should play} 28... Rc5 $14) 29. dxc6 $18 {[%emt 0:00:00]} Nc5 $2 {[%emt 0:01:04]} (29... Nb6 30. Nc4 Rc5 31. Nxe5 Bxe5) 30. Rd1 {[%emt 0:01:00]} Qc8 {[%emt 0:02:56]} (30... Qb8 31. Qc2 Ne6) 31. Nd5 {[%emt 0:00:30] [#] Strongly threatening Ne7+.} Kf8 {[%emt 0:00:36] Against Ne7} 32. Bxe5 {[%emt 0:02:52]} Qxc6 {[%emt 0:00:05]} 33. Nc7 $2 {[%emt 0:01:18]} (33. Bxg7+ {mates} Kxg7 34. Qe5+ Kh6 35. Ne7 Qc8 36. Nxc8 Ne6 37. Qe3+ Kg7 38. Qc3+ Kh6 39. Nd6) 33... Rb8 {[%emt 0:00:52]} 34. Bxg7+ {[%emt 0:00:52]} Kxg7 {[%emt 0:00:10]} 35. Qe5+ {[%emt 0:00:12]} Kh6 {[%emt 0:01:39] [#]} 36. Ne6 $1 {[%emt 0:04:00][%mdl 512]} Nxe6 {[%emt 0:00:10]} 37. Qxb8 {[%emt 0:00:03]} Kg7 {[%emt 0:00:55]} 38. Qe5+ {[%emt 0:00:28]} f6 $2 {[%emt 0:00:06]} (38... Kg8 39. Rb1 Nf8) 39. Qd6 {[%emt 0:00:44] White is clearly winning.} Qf3 {[%emt 0:00:41]} 40. Qd3 {[%emt 0:00:00]} Qg4 {[%emt 0:00:00]} 41. Qd7+ {[%emt 0:03:31] Weighted Error Value: White=0.36/Black=0.57} 1-0

[Event "FIDE WSTC-50-65 2022"]
[Site "Acqui Terme"]
[Date "2022.06.23"]
[Round "4.8"]
[White "Krizsany, Laszlo"]
[Black "Bellia, Fabrizio"]
[Result "1/2-1/2"]
[ECO "D36"]
[WhiteElo "2377"]
[BlackElo "2418"]
[Annotator "TA"]
[PlyCount "23"]
[EventDate "2022.06.20"]
[EventType "team-tourn"]
[EventCountry "ITA"]
[SourceTitle "playchess.com"]
[Source "ChessBase"]
[SourceQuality "1"]
[TimeControl "40/5400+30:1800+30"]

{[%evp 20,23,13,9,18,17]} 1. d4 {[%emt 0:01:00]} d5 {[%emt 0:01:00]} 2. c4 {[%emt 0:00:00]} e6 {[%emt 0:00:00]} 3. Nc3 {[%emt 0:00:00]} Nf6 {[%emt 0:00:00]} 4. cxd5 {[%emt 0:01:30]} exd5 {[%emt 0:00:30]} 5. Bg5 {[%emt 0:00:30]} c6 {[%emt 0:00:00]} 6. e3 {[%emt 0:00:30]} Be7 {[%emt 0:00:00]} 7. Bd3 {[%emt 0:00:30]} O-O {[%emt 0:01:30]} 8. Qc2 {[%emt 0:00:30]} Nbd7 {[%emt 0:00:00]} 9. Nf3 {[%emt 0:00:30]} Re8 {[%emt 0:00:00]} 10. O-O {[%emt 0:00:30]} g6 {[%emt 0:00:30]} 11. Rab1 {[%emt 0:00:30]} Nb6 {[%emt 0:00:00] [#] D36: Queen's Gambit Declined: Exchange Variation: Main line (5 Bg5 c6 6 Qc2).} 12. Rbc1 $146 {[%emt 0:11:30] Not much happened in this game.} ({Predecessor:} 12. Ne5 a5 13. Rbe1 Ng4 14. Bxe7 Qxe7 15. f4 Nh6 16. e4 dxe4 17. Nxe4 Bf5 18. Ng3 Bxd3 19. Qxd3 {½-½ (49) Shtembuliak,E (2501)-Rambaldi,F (2563) Columbus 2017}) 1/2-1/2

[Event "FIDE WSTC-50-65 2022"]
[Site "Acqui Terme"]
[Date "2022.06.23"]
[Round "4.9"]
[White "Knaak, Rainer"]
[Black "Nunn, John D M"]
[Result "0-1"]
[ECO "E73"]
[WhiteElo "2479"]
[BlackElo "2568"]
[Annotator "TA"]
[PlyCount "70"]
[EventDate "2022.06.20"]
[EventType "team-tourn"]
[EventCountry "ITA"]
[SourceTitle "playchess.com"]
[Source "ChessBase"]
[SourceQuality "1"]
[TimeControl "40/5400+30:1800+30"]

{[%evp 14,70,67,66,76,45,44,63,83,84,66,58,98,67,84,22,86,91,78,82,127,108,102,115,124,80,79,96,110,101,115,91,100,55,66,0,0,0,80,0,0,0,80,0,0,0,0,-126,-117,-189,-194,-197,-179,-200,-156,-1364,-1362,-1243,-1227]} 1. d4 {[%emt 0:01:00]} Nf6 {[%emt 0:01:00]} 2. c4 {[%emt 0:00:00]} g6 {[%emt 0:00:00]} 3. Nc3 {[%emt 0:00:00]} Bg7 {[%emt 0:00:00]} 4. e4 {[%emt 0:00:30]} d6 {[%emt 0:00:00]} 5. Be2 {[%emt 0:00:30]} O-O {[%emt 0:00:00]} 6. Be3 {[%emt 0:00:00]} e5 {[%emt 0:04:30]} 7. d5 {[%emt 0:00:00]} a5 {[%emt 0:01:30]} 8. g4 {[%emt 0:03:30]} Na6 {[%emt 0:00:30] E73: King's Indian: Averbakh Variation without 6...c5.} 9. g5 {[%emt 0:00:30] is more profitable than 9.h4 at the moment.} Nd7 {[%emt 0:04:30]} 10. h4 {[%emt 0:00:00]} f5 {[%emt 0:00:30] White is slightly better.} 11. gxf6 $1 {[%emt 0:01:00]} Nxf6 {[%emt 0:04:30]} ({Reject} 11... Qxf6 12. Qd2 $11) 12. h5 {[%emt 0:03:30]} Nc5 {[%emt 0:04:30]} 13. hxg6 {[%emt 0:03:30]} hxg6 {[%emt 0:00:30]} 14. Bf3 {[%emt 0:07:30] [#]} (14. Bxc5 $16 {And now Be3 would win.} dxc5 15. Qd3) 14... Kf7 $146 {[%emt 0:05:30]} (14... c6 $11) ({Predecessor:} 14... c6 15. Nh3 cxd5 16. cxd5 b5 17. Ng5 b4 18. Ne2 Ng4 19. Bxg4 Bxg4 20. Rg1 Qd7 21. Bxc5 dxc5 {1-0 (44) Sarana,A (2649)-Matinian,N (2470) Cheboksary 2021}) 15. Nh3 $16 {[%emt 0:29:30]} Bxh3 {[%emt 0:01:30]} 16. Rxh3 {[%emt 0:00:30]} Qd7 {[%emt 0:08:30]} 17. Rg3 {[%emt 0:00:30]} Rh8 {[%emt 0:01:30]} 18. Qd2 {[%emt 0:06:30]} Rh3 {[%emt 0:15:30]} 19. O-O-O {[%emt 0:00:30][%cal Of3g4]} Rxg3 {[%emt 0:00:30]} 20. fxg3 {[%emt 0:00:00]} Rh8 {[%emt 0:00:30]} 21. Kb1 {[%emt 0:06:00]} b6 {[%emt 0:05:30]} 22. Rf1 {[%emt 0:06:30]} Kg8 {[%emt 0:00:30]} 23. Bg5 {[%emt 0:12:23]} Qh3 {[%emt 0:17:30]} 24. Qf2 {[%emt 0:00:21]} ({White should play} 24. Qe1 $1 $14) 24... Nd3 $11 {[%emt 0:02:30] Pair of Knights!} 25. Qg1 {[%emt 0:06:45] aiming for Bxf6.} Ng4 {[%emt 0:01:30]} (25... Qh2 $11 26. Qxh2 Rxh2) 26. Bxg4 {[%emt 0:03:07]} (26. Be2 $16 Nc5 27. Bxg4 Qxg4 28. Qf2 $1 (28. Qe3 Rh2 $15)) 26... Qxg4 {[%emt 0:00:00]} 27. Qe3 {[%emt 0:01:27]} Nc5 {[%emt 0:02:12] [#]} (27... Rh2 $11 28. Qxd3 Qxg5) 28. Bh4 {[%emt 0:03:20]} (28. Qf2 $1 $16 {[%cal Rf2f7] Hoping for Qf7+.} Qd7 29. b3) 28... Rh5 {[%emt 0:02:04]} 29. Bd8 {[%emt 0:01:34]} Qd7 {[%emt 0:01:17]} 30. Bg5 {[%emt 0:00:21]} (30. Bh4 $11) 30... Qh3 $36 {[%emt 0:00:57][%mdl 2048] Black has strong initiative.} 31. Re1 {[%emt 0:03:06] [#]} (31. Rg1 $17 {was worth a try.}) 31... Qg4 $1 $19 {[%emt 0:00:33]} 32. Bd8 {[%emt 0:00:12]} Bh6 {[%emt 0:00:56]} 33. Qe2 {[%emt 0:00:21]} Qxg3 {[%emt 0:01:18]} 34. Bxc7 $2 {[%emt 0:00:11]} (34. Qd1 $17 Rh2 35. Re2) 34... Rh2 {[%emt 0:00:22]} 35. Qd1 {[%emt 0:00:19]} Rd2 {[%emt 0:00:17] Weighted Error Value: White=0.43/Black=0.23 (precise)} 0-1

[Event "FIDE WSTC-50-65 2022"]
[Site "Acqui Terme"]
[Date "2022.06.23"]
[Round "4.10"]
[White "Littlewood, Paul E"]
[Black "Chevelevitch, Evgueni"]
[Result "1-0"]
[ECO "E92"]
[WhiteElo "2347"]
[BlackElo "2369"]
[Annotator "TA"]
[PlyCount "101"]
[EventDate "2022.06.20"]
[EventType "team-tourn"]
[EventCountry "ITA"]
[SourceTitle "playchess.com"]
[Source "ChessBase"]
[SourceQuality "1"]
[TimeControl "40/5400+30:1800+30"]

{[%evp 32,101,40,29,33,32,27,25,74,69,77,77,107,6,43,35,26,9,9,0,0,0,16,16,4,14,73,86,92,77,68,28,61,21,21,22,47,48,48,30,34,31,33,26,77,50,45,55,73,60,62,39,45,37,35,35,42,0,0,0,0,0,0,0,0,0,0,-37,0,0,629,586]} 1. d4 {[%emt 0:01:00]} Nf6 {[%emt 0:01:00]} 2. c4 {[%emt 0:00:00]} g6 {[%emt 0:00:00]} 3. Nc3 {[%emt 0:00:00]} Bg7 {[%emt 0:00:00]} 4. e4 {[%emt 0:00:30]} d6 {[%emt 0:00:00]} 5. Nf3 {[%emt 0:00:30]} O-O {[%emt 0:00:00]} 6. Be2 {[%emt 0:00:30]} e5 {[%emt 0:00:30]} 7. d5 {[%emt 0:00:00]} a5 {[%emt 0:00:30]} 8. Bg5 {[%emt 0:00:00]} h6 {[%emt 0:00:30]} 9. Bh4 {[%emt 0:00:30]} Na6 {[%emt 0:01:30]} 10. Nd2 {[%emt 0:00:30]} Qe8 {[%emt 0:01:30]} 11. a3 {[%emt 0:02:30]} Bd7 {[%emt 0:00:30]} 12. b3 {[%emt 0:00:30]} Nh7 {[%emt 0:01:30]} 13. O-O {[%emt 0:05:30]} h5 {[%emt 0:00:30]} 14. f3 {[%emt 0:00:00]} Bh6 {[%emt 0:00:00]} 15. Rb1 {[%emt 0:04:00]} Be3+ {[%emt 0:01:00]} 16. Kh1 {[%emt 0:01:30]} Bc5 {[%emt 0:00:30]} 17. Qc1 {[%emt 0:01:30]} Qb8 {[%emt 0:09:30] E92: King's Indian: Classical: 6 Be2 e5: 7 dxe5, 7 Be3 and Petrosian System without 7...Nbd7.} 18. Bf2 {[%emt 0:13:30]} Bxf2 {[%emt 0:07:30]} 19. Rxf2 {[%emt 0:00:30]} c6 {[%emt 0:01:30] [#]} (19... Qd8 $11) 20. Nf1 $146 {[%emt 0:20:30]} ({Predecessor:} 20. b4 Qa7 21. Rf1 axb4 22. axb4 Nf6 23. c5 dxc5 24. bxc5 Nxc5 25. Nc4 cxd5 26. Nb6 {1-0 (48) Jepson,C (2413)-Hagen,A (2377) Denmark 2018}) 20... Qa7 {[%emt 0:19:30]} 21. Ne3 {[%emt 0:05:30]} f5 {[%emt 0:01:30]} 22. b4 {[%emt 0:09:30]} (22. exf5 $16 Bxf5 23. Rb2) 22... f4 {[%emt 0:03:30] [#] Threatens to win with ...axb4.} 23. Ned1 {[%emt 0:00:30] Hoping for c5.} axb4 {[%emt 0:00:30]} 24. axb4 {[%emt 0:00:30][%cal Oc4c5] And now c5! would win.} c5 {[%emt 0:00:00]} 25. bxc5 {[%emt 0:01:30]} Nxc5 {[%emt 0:00:00]} 26. Bf1 {[%emt 0:00:30]} Qa5 {[%emt 0:12:30]} 27. Rfb2 {[%emt 0:01:30]} Nf6 {[%emt 0:07:30]} 28. Nf2 {[%emt 0:01:30]} Qc7 {[%emt 0:04:30]} (28... Be8 $11 {remains equal.}) 29. Nd3 {[%emt 0:01:30]} Nxd3 {[%emt 0:07:46]} 30. Bxd3 {[%emt 0:00:30]} Bc8 {[%emt 0:04:09]} 31. Qc2 {[%emt 0:13:41]} (31. Be2 {with more complications.} Qc5 32. Rb5 Qf2 33. Rb6) 31... Nd7 {[%emt 0:04:01]} 32. Na4 {[%emt 0:00:46]} (32. c5 $5) 32... Ra5 {[%emt 0:02:28]} 33. Bf1 {[%emt 0:00:58]} Nc5 {[%emt 0:00:57]} 34. Nxc5 {[%emt 0:00:12]} Rxc5 {[%emt 0:00:03]} 35. Qa4 {[%emt 0:01:51]} Ra5 {[%emt 0:03:03]} 36. Qb4 {[%emt 0:01:06]} Kf7 {[%emt 0:01:58]} 37. Qc3 {[%emt 0:01:25]} Ke7 {[%emt 0:02:21]} (37... g5 $11) 38. Rb6 {[%emt 0:01:09]} Qc5 {[%emt 0:00:24]} 39. Qc1 {[%emt 0:05:22]} Qc7 {[%emt 0:01:41]} 40. Qe1 {[%emt 0:00:00]} Rc5 {[%emt 0:00:00]} 41. Qb4 {[%emt 0:20:05]} g5 {[%emt 0:04:39][%cal Bg6g5,Bg5g4][%mdl 32]} 42. Qa3 {[%emt 0:01:29]} g4 {[%emt 0:06:30]} 43. Qa7 {[%emt 0:05:07]} Kf6 $1 {[%emt 0:02:30]} 44. Rxd6+ {[%emt 0:01:58]} Qxd6 {[%emt 0:00:30]} 45. Rb6 $36 {[%emt 0:00:01][%mdl 2048] White has good play.} Rc6 {[%emt 0:00:30]} 46. dxc6 {[%emt 0:00:32]} Qd1 $1 {[%emt 0:11:08][%cal Rd1f1] [#]} 47. cxb7+ {[%emt 0:02:48]} Be6 {[%emt 0:00:49]} 48. Rxe6+ {[%emt 0:04:48]} Kxe6 {[%emt 0:00:10]} 49. Qa6+ {[%emt 0:00:29]} Kd7 {[%emt 0:04:16][%cal Rd1f1][%mdl 1024] Black has compensation.} (49... Ke7 $5 50. Kg1 gxf3 51. Qa3+ Qd6 52. Qxf3 (52. Qa7 $2 Rb8 $19) 52... Qb6+ 53. c5 (53. Qf2 $2 Qxf2+ 54. Kxf2 Rb8 $17) 53... Qxb7 54. Qxh5 Qxe4 55. Qg5+ Ke6 $15) 50. Qb5+ {[%emt 0:01:20]} Kd6 $2 {[%emt 0:01:48][%mdl 8192]} (50... Ke6 $11 51. c5 gxf3) 51. b8=Q+ {[%emt 0:00:26] Weighted Error Value: White=0.16 (very precise) /Black=0.29 (precise)} 1-0

[Event "FIDE WSTC-50-65 2022"]
[Site "Acqui Terme"]
[Date "2022.06.23"]
[Round "4.11"]
[White "Kiefer, Gerhard"]
[Black "Povah, Nigel E"]
[Result "0-1"]
[ECO "B15"]
[WhiteElo "2224"]
[BlackElo "2201"]
[Annotator "NA RC"]
[PlyCount "70"]
[EventDate "2022.06.20"]
[EventType "team-tourn"]
[EventCountry "ITA"]
[SourceTitle "playchess.com"]
[Source "ChessBase"]
[SourceQuality "1"]
[TimeControl "40/5400+30:1800+30"]

1. e4 {[%emt 0:01:00]} c6 {[%emt 0:01:00]} 2. d4 {[%emt 0:00:00]} d5 {[%emt 0:00:00]} 3. Nc3 {[%emt 0:00:00]} dxe4 {[%emt 0:00:00]} 4. Nxe4 {[%emt 0:00:30]} Nf6 {[%emt 0:00:30]} 5. Nxf6+ {[%emt 0:00:00]} exf6 {[%emt 0:00:00]} 6. c3 {[%emt 0:00:00]} Bd6 {[%emt 0:00:00]} 7. Bd3 {[%emt 0:00:30]} O-O {[%emt 0:00:30]} 8. Qc2 {[%emt 0:00:30]} Re8+ {[%emt 0:00:00]} 9. Ne2 {[%emt 0:00:00]} h5 {[%emt 0:00:00]} 10. Bd2 {[%emt 0:01:00]} Nd7 {[%emt 0:08:30]} 11. O-O-O {[%emt 0:00:30]} b5 {[%emt 0:08:30]} 12. Kb1 {[%emt 0:01:30]} Nb6 {[%emt 0:04:30]} 13. Bf4 {[%emt 0:02:30]} Be6 {[%emt 0:15:30]} 14. Bxd6 {[%emt 0:12:30]} Qxd6 {[%emt 0:00:00]} 15. Ng3 {[%emt 0:00:00]} Qd5 {[%emt 0:09:00]} 16. b3 {[%emt 0:00:00]} a5 {[%emt 0:00:30]} 17. Nf1 {[%emt 0:10:30]} a4 {[%emt 0:11:30]} 18. b4 {[%emt 0:01:30]} Qxg2 {[%emt 0:01:30]} 19. Ne3 {[%emt 0:00:30]} Qf3 {[%emt 0:02:30]} 20. Rhg1 {[%emt 0:00:30]} h4 {[%emt 0:01:30]} 21. Ka1 {[%emt 0:04:30]} Bb3 {[%emt 0:02:30]} 22. Qd2 {[%emt 0:07:30]} Bxd1 {[%emt 0:00:30]} 23. Nf5 {[%emt 0:00:30]} Kf8 {[%emt 0:14:18]} 24. Rxd1 {[%emt 0:28:30]} g5 {[%emt 0:04:27]} 25. Ne3 {[%emt 0:00:30]} Rad8 {[%emt 0:01:25]} 26. Bf1 {[%emt 0:00:30]} Qf4 {[%emt 0:01:19]} 27. Bg2 {[%emt 0:00:30]} Nd5 {[%emt 0:04:19]} 28. Bxd5 {[%emt 0:05:30]} Rxd5 {[%emt 0:00:33]} 29. Nxd5 {[%emt 0:02:30]} Qxd2 {[%emt 0:00:09]} 30. Rxd2 {[%emt 0:00:00]} cxd5 {[%emt 0:00:04]} 31. Kb2 {[%emt 0:01:00]} Re1 {[%emt 0:00:32]} 32. h3 {[%emt 0:00:30]} Ke7 {[%emt 0:01:51]} 33. Ka3 {[%emt 0:00:30]} f5 {[%emt 0:00:46]} 34. c4 {[%emt 0:00:30]} dxc4 {[%emt 0:00:12]} 35. f4 {[%emt 0:01:30]} Re3+ {[%emt 0:00:28]} 0-1

[Event "FIDE WSTC-50-65 2022"]
[Site "Acqui Terme"]
[Date "2022.06.23"]
[Round "4.12"]
[White "Snape, Ian L"]
[Black "Kierzek, Matthias"]
[Result "1/2-1/2"]
[ECO "A29"]
[WhiteElo "2112"]
[BlackElo "2224"]
[Annotator "NA RC"]
[PlyCount "59"]
[EventDate "2022.06.20"]
[EventType "team-tourn"]
[EventCountry "ITA"]
[SourceTitle "playchess.com"]
[Source "ChessBase"]
[SourceQuality "1"]
[TimeControl "40/5400+30:1800+30"]

1. c4 {[%emt 0:01:00]} e5 {[%emt 0:01:00]} 2. Nc3 {[%emt 0:00:00]} Nf6 {[%emt 0:00:30]} 3. Nf3 {[%emt 0:00:00]} Nc6 {[%emt 0:00:30]} 4. g3 {[%emt 0:00:00]} Bb4 {[%emt 0:00:00]} 5. Nd5 {[%emt 0:00:00]} e4 {[%emt 0:00:00]} 6. Nh4 {[%emt 0:05:30]} O-O {[%emt 0:00:30]} 7. Bg2 {[%emt 0:01:30]} Re8 {[%emt 0:00:30]} 8. O-O {[%emt 0:00:30]} d6 {[%emt 0:00:30]} 9. d3 {[%emt 0:03:30]} exd3 {[%emt 0:11:30]} 10. Qxd3 {[%emt 0:02:30]} Nxd5 {[%emt 0:00:00]} 11. cxd5 {[%emt 0:00:30]} Ne5 {[%emt 0:00:00]} 12. Qc2 {[%emt 0:03:30]} Bc5 {[%emt 0:03:30]} 13. h3 {[%emt 0:04:30]} a5 {[%emt 0:15:30]} 14. Bd2 {[%emt 0:06:30]} Bd7 {[%emt 0:03:30]} 15. Rad1 {[%emt 0:10:30]} Bb5 {[%emt 0:13:30]} 16. Bc3 {[%emt 0:13:30]} Qd7 {[%emt 0:07:30]} 17. Rfe1 {[%emt 0:03:30]} Bb4 {[%emt 0:08:30]} 18. a3 {[%emt 0:04:30]} Bxc3 {[%emt 0:01:30]} 19. Qxc3 {[%emt 0:00:30]} Ng6 {[%emt 0:04:30]} 20. Nxg6 {[%emt 0:00:30]} hxg6 {[%emt 0:00:00]} 21. e4 {[%emt 0:03:30]} b6 {[%emt 0:02:00]} 22. f4 {[%emt 0:03:30]} f6 {[%emt 0:01:30]} 23. Rc1 {[%emt 0:02:30]} Rac8 {[%emt 0:01:30]} 24. Qc2 {[%emt 0:07:30]} Re7 {[%emt 0:08:09]} 25. Kh2 {[%emt 0:03:30]} Rce8 {[%emt 0:00:19]} 26. e5 {[%emt 0:05:50]} fxe5 {[%emt 0:00:50]} 27. fxe5 {[%emt 0:00:13]} Rxe5 {[%emt 0:00:26]} 28. Rxe5 {[%emt 0:00:13]} Rxe5 {[%emt 0:00:40]} 29. Qxg6 {[%emt 0:00:24]} Re2 {[%emt 0:03:55]} 30. Rc2 {[%emt 0:01:12]} 1/2-1/2

[Event "FIDE WSTC-50-65 2022"]
[Site "Acqui Terme"]
[Date "2022.06.23"]
[Round "4.13"]
[White "Meister, Jakob"]
[Black "Vaisser, Anatoly"]
[Result "1-0"]
[ECO "C13"]
[WhiteElo "2418"]
[BlackElo "2488"]
[Annotator "TA"]
[PlyCount "93"]
[EventDate "2022.06.20"]
[EventType "team-tourn"]
[EventCountry "ITA"]
[SourceTitle "playchess.com"]
[Source "ChessBase"]
[SourceQuality "1"]
[TimeControl "40/5400+30:1800+30"]

{[%evp 14,93,16,-2,2,-17,-17,-4,0,0,0,0,19,0,0,0,0,0,0,0,16,2,16,13,24,20,29,31,31,26,66,64,58,42,73,73,72,72,153,152,189,163,198,179,203,191,163,120,120,114,109,113,114,111,114,116,116,116,161,158,164,154,214,204,271,257,265,221,322,328,635,634,1202,1173,1974,1658,5734,4931,29980,29980,29975,4129]} 1. e4 {[%emt 0:01:00]} e6 {[%emt 0:01:00]} 2. d4 {[%emt 0:00:00]} d5 {[%emt 0:00:00]} 3. Nc3 {[%emt 0:00:00]} Nf6 {[%emt 0:00:00]} 4. Bg5 {[%emt 0:00:00]} dxe4 {[%emt 0:00:30]} 5. Nxe4 {[%emt 0:00:00][%cal Bc3e4,Be4d2,Bd2c4,Bc4d6][%mdl 32]} Be7 {[%emt 0:00:00]} 6. Bxf6 {[%emt 0:04:30]} gxf6 {[%emt 0:00:00]} 7. Nf3 {[%emt 0:00:00]} f5 {[%emt 0:00:30]} 8. Ned2 {[%emt 0:00:00]} c5 {[%emt 0:01:30] C13: French: Classical System: 4 Bg5 Be7, Alekhine-Chatard Attack.} 9. Nc4 {[%emt 0:04:30]} Nc6 {[%emt 0:04:30]} 10. dxc5 {[%emt 0:00:30]} Qxd1+ {[%emt 0:06:30] The position is equal.} 11. Rxd1 {[%emt 0:00:30] Nd6+ is the strong threat.} Bxc5 {[%emt 0:00:30]} 12. c3 {[%emt 0:02:30]} a5 {[%emt 0:02:30] [#]} 13. Nd6+ $146 {[%emt 0:02:30] Pair of Knights!} ({Predecessor:} 13. Be2 Ke7 14. O-O f6 15. a4 Rd8 16. Nfd2 b6 17. Bf3 Bd7 18. Nb3 Rab8 19. Rfe1 {½-½ (42) Jackova,J (2210)-Straub,N (2270) Frydek Mistek 1996}) 13... Ke7 {[%emt 0:01:30]} 14. Nxc8+ {[%emt 0:03:30]} Rhxc8 {[%emt 0:00:30]} 15. a4 {[%emt 0:01:30]} Rd8 {[%emt 0:01:30]} 16. Bd3 {[%emt 0:04:30]} Kf6 {[%emt 0:03:30]} 17. Ke2 {[%emt 0:02:30]} e5 {[%emt 0:14:30] [#] White must now prevent ...e4.} 18. Bb5 {[%emt 0:00:30]} Ne7 {[%emt 0:00:30]} 19. g3 {[%emt 0:01:30]} Nd5 {[%emt 0:12:30]} 20. Nd2 {[%emt 0:05:30]} Nc7 {[%emt 0:05:30]} 21. Bc4 {[%emt 0:03:30]} e4 {[%emt 0:07:30]} 22. f3 {[%emt 0:05:30]} exf3+ {[%emt 0:01:30]} 23. Nxf3 {[%emt 0:04:30]} Re8+ {[%emt 0:04:30] [#]} 24. Kd2 $1 {[%emt 0:00:30]} Re4 {[%emt 0:03:30]} 25. b3 {[%emt 0:02:30]} f4 {[%emt 0:06:30]} (25... Re3 $142 26. Nh4 (26. Nd4 Bxd4 27. cxd4 Re4 $11) 26... Rd8+ 27. Kc2 Rxd1 28. Rxd1 Re5) 26. Kc2 $16 {[%emt 0:01:30]} Ne6 {[%emt 0:06:14]} 27. Rhf1 {[%emt 0:03:30]} Ke7 {[%emt 0:01:38]} 28. Nd2 {[%emt 0:04:30]} Re5 {[%emt 0:00:48]} 29. gxf4 {[%emt 0:02:30]} Rf5 {[%emt 0:00:32]} 30. Ne4 {[%emt 0:00:30]} Rg8 {[%emt 0:07:48]} 31. Rd5 {[%emt 0:14:30]} Rg2+ {[%emt 0:01:22]} 32. Kb1 {[%emt 0:03:30]} Rxd5 {[%emt 0:00:08]} 33. Bxd5 {[%emt 0:00:30]} Rg1 {[%emt 0:00:38]} 34. Rxg1 {[%emt 0:00:30]} Bxg1 {[%emt 0:00:03][%mdl 4096] Endgame KBN-KBN} 35. f5 {[%emt 0:00:30]} Nf4 {[%emt 0:02:50]} 36. Bxb7 {[%emt 0:01:30]} Bxh2 {[%emt 0:00:10]} 37. Kc2 {[%emt 0:00:30]} h5 {[%emt 0:01:13]} (37... Nh5 $16 {was worth a try.} 38. b4 Bc7) 38. b4 $18 {[%emt 0:00:30]} axb4 {[%emt 0:01:43]} 39. cxb4 {[%emt 0:00:30]} Kd8 {[%emt 0:00:34]} 40. Ng5 {[%emt 0:01:30]} Ne2 {[%emt 0:00:00]} (40... Kc7 {was called for.}) 41. Kd3 {[%emt 0:00:30]} ({Much less strong is} 41. Nxf7+ $6 Ke7 $18) 41... Nc1+ {[%emt 0:05:19]} (41... Nf4+ 42. Kc4 f6) 42. Kc4 {[%emt 0:04:30]} Kc7 {[%emt 0:01:30]} 43. Bf3 {[%emt 0:00:30]} h4 {[%emt 0:04:30]} 44. Nxf7 {[%emt 0:01:30] Strongly threatening a5.} Bf4 {[%emt 0:02:30]} 45. a5 {[%emt 0:05:30] Threatening mate with b5.} Kb8 {[%emt 0:02:30]} 46. f6 {[%emt 0:00:30]} h3 {[%emt 0:00:41]} 47. Nd8 {[%emt 0:04:30] Weighted Error Value: White=0.04 (flawless) /Black=0.49} (47. b5 $142 Ka7 48. Nd8 Bh6 49. Nc6+ Kb7 50. Nb4+ Kc7 51. b6+ Kd6 52. a6) 1-0